bitfinex/quotes_BTCUSD_20250829
["timestamp","ask_amount","ask_price","bid_price","bid_amount"]
[1756484831087,0.18502909,108850.0,108840.0,0.18475597]
[1756484831724,1.10672698,108850.0,108840.0,0.001]
[1756484831943,1.07974748,108850.0,108840.0,0.001]
[1756484832096,0.18375597,108840.0,108830.0,0.07208]
[1756484832295,0.18504597,108840.0,108830.0,0.07208]
[1756484832616,0.73896436,108840.0,108830.0,0.07108]
[1756484833062,0.73896436,108840.0,108830.0,0.25485285]
[1756484833498,0.73896436,108840.0,108830.0,0.07108]
[1756484833701,0.18504597,108840.0,108830.0,0.0004]
[1756484833883,0.73896436,108840.0,108830.0,0.18417285]
[1756484834052,0.73896436,108840.0,108830.0,0.0004]
[1756484834254,0.18504597,108840.0,108830.0,0.18417285]
[1756484835188,0.00129,108840.0,108830.0,0.18731285]
[1756484835483,0.01438282,108840.0,108830.0,0.18933285]
[1756484836275,0.01567282,108840.0,108830.0,0.18933285]
[1756484836825,0.01438282,108840.0,108830.0,0.18933285]
[1756484837827,0.01438282,108840.0,108830.0,0.0004]
[1756484837828,0.19942879,108840.0,108830.0,0.0004]
[1756484838073,0.19942879,108840.0,108830.0,0.18933285]
[1756484838273,0.01438282,108840.0,108830.0,0.18933285]
[1756484838679,0.02299592,108840.0,108830.0,0.18933285]
[1756484838890,0.04151212,108840.0,108830.0,0.18933285]
[1756484839294,0.22526809,108840.0,108830.0,0.18933285]
[1756484839492,0.22526809,108840.0,108830.0,0.0004]
[1756484839701,0.22526809,108840.0,108830.0,0.18917285]
[1756484840304,0.77918648,108840.0,108830.0,0.0004]
[1756484841255,0.86748145,108840.0,108830.0,0.0004]
[1756484841417,0.77998513,108840.0,108830.0,0.0004]
[1756484841600,1.11998513,108840.0,108830.0,0.0004]
[1756484841804,1.67390352,108840.0,108830.0,0.0004]
[1756484842231,1.70154452,108840.0,108830.0,0.0004]
[1756484842405,1.78984084,108840.0,108830.0,0.0004]
[1756484842603,6.77545802,108840.0,108830.0,0.0004]
[1756484843008,6.77645802,108840.0,108830.0,0.0004]
[1756484843208,6.81863108,108840.0,108830.0,0.0004]
[1756484843845,6.73033476,108840.0,108830.0,0.0004]
[1756484844424,0.52377285,108830.0,108820.0,0.0004]
[1756484844623,6.10352919,108830.0,108820.0,0.0004]
[1756484844858,1.10481919,108830.0,108820.0,0.0004]
[1756484845060,1.13246219,108830.0,108820.0,0.0004]
[1756484845509,0.56399572,108830.0,108820.0,0.0054]
[1756484845743,0.56399572,108830.0,108820.0,0.0054476]
[1756484846385,0.38022287,108830.0,108820.0,0.18923734]
[1756484846604,0.04022287,108830.0,108820.0,0.18923734]
[1756484847809,0.04122287,108830.0,108820.0,0.18923734]
[1756484848260,0.04117332,108830.0,108820.0,0.19023734]
[1756484849232,0.04117332,108830.0,108820.0,0.74415573]
[1756484849950,0.0181922,108830.0,108820.0,0.74415573]
[1756484851109,0.0171922,108830.0,108820.0,0.74315573]
[1756484851435,0.01983916,108840.0,108830.0,0.18377285]
[1756484851560,0.045628,108840.0,108830.0,0.76387396]
[1756484851771,0.03703178,108840.0,108830.0,0.76591396]
[1756484851974,0.04562809,108840.0,108830.0,0.76591396]
[1756484852174,0.04562809,108840.0,108830.0,0.18877285]
[1756484852416,0.04562878,108840.0,108830.0,0.18877285]
[1756484852581,0.04562878,108840.0,108830.0,0.18977285]
[1756484853735,0.23067475,108840.0,108830.0,0.001]
[1756484854055,0.80781586,108840.0,108830.0,0.001]
[1756484854258,0.80781586,108840.0,108830.0,0.003]
[1756484854463,0.80861586,108840.0,108830.0,0.003]
[1756484854664,1.14861586,108840.0,108830.0,0.003]
[1756484855365,1.1486209,108840.0,108830.0,0.003]
[1756484855625,1.16300478,108840.0,108830.0,0.003]
[1756484855757,1.16300478,108840.0,108830.0,0.002]
[1756484855962,0.18377285,108830.0,108820.0,0.0004476]
[1756484856335,0.78670862,108830.0,108820.0,0.0004476]
[1756484856472,0.78799862,108830.0,108820.0,0.0004476]
[1756484856854,0.78799862,108830.0,108820.0,0.18627734]
[1756484857624,0.78799862,108830.0,108820.0,0.0024876]
[1756484857952,0.78799862,108830.0,108820.0,0.0004476]
[1756484859186,0.20956751,108830.0,108820.0,0.18923734]
[1756484859402,0.02579466,108830.0,108820.0,0.18923734]
[1756484859583,0.20956751,108830.0,108820.0,0.18923734]
[1756484859792,0.21085751,108830.0,108820.0,0.18923734]
[1756484860211,0.02579466,108830.0,108820.0,0.18923734]
[1756484860421,0.21085751,108830.0,108820.0,0.18923734]
[1756484860626,0.21085751,108830.0,108820.0,0.0054476]
[1756484860781,0.21085751,108830.0,108820.0,0.0034076]
[1756484861138,0.78799862,108830.0,108820.0,0.0004476]
[1756484861334,1.12879862,108830.0,108820.0,0.0004476]
[1756484861729,1.15644062,108830.0,108820.0,0.0004476]
[1756484861924,1.15564062,108830.0,108820.0,0.0004476]
[1756484862467,1.14706072,108830.0,108820.0,0.0004476]
[1756484862643,1.15746813,108830.0,108820.0,0.0004476]
[1756484863498,1.15666813,108830.0,108820.0,0.0004476]
[1756484863697,6.15746813,108830.0,108820.0,0.0004476]
[1756484863824,6.15846813,108830.0,108820.0,0.0004476]
[1756484864350,6.18581599,108830.0,108820.0,0.0004476]
[1756484864728,6.22627041,108830.0,108820.0,0.0004476]
[1756484865134,0.52380663,108810.0,108800.0,0.0004]
[1756484865332,1.12676991,108810.0,108800.0,0.00087685]
[1756484865545,1.12885991,108810.0,108800.0,0.00087685]
[1756484865746,1.15650891,108810.0,108800.0,0.00087685]
[1756484865968,1.17089718,108810.0,108800.0,0.00087685]
[1756484866401,1.17109718,108810.0,108800.0,0.00087685]
[1756484866548,1.17209718,108810.0,108800.0,0.00087685]
[1756484867561,6.83833461,108810.0,108800.0,0.00087685]
[1756484867766,6.8910561,108810.0,108800.0,0.00087685]
[1756484868081,7.08271492,108810.0,108800.0,0.00087685]
[1756484868284,7.05734129,108810.0,108800.0,0.00087685]
[1756484868482,7.24116129,108810.0,108800.0,0.00087685]
[1756484868967,7.24016129,108810.0,108800.0,0.00087685]
[1756484869376,7.24116129,108810.0,108800.0,0.00087685]
[1756484869734,7.26953492,108810.0,108800.0,0.00087685]
[1756484870237,0.52385732,108780.0,108770.0,0.0004]
[1756484870406,1.3106406,108780.0,108770.0,0.0004]
[1756484870699,1.3119306,108780.0,108770.0,0.0004]
[1756484870843,1.32632239,108780.0,108770.0,0.0004]
[1756484871065,1.35397739,108780.0,108770.0,0.0004]
[1756484871266,1.35397739,108780.0,108770.0,0.00546]
[1756484871580,1.35397739,108780.0,108770.0,0.00353]
[1756484871783,1.3395856,108780.0,108770.0,0.00646]
[1756484872308,1.3395856,108780.0,108770.0,0.0034]
[1756484872439,1.42788192,108780.0,108770.0,0.0034]
[1756484872638,1.42868192,108780.0,108770.0,0.0034]
[1756484873108,6.42868192,108780.0,108770.0,0.0034]
[1756484873337,6.44848529,108780.0,108770.0,0.0034]
[1756484873866,6.48964597,108780.0,108770.0,0.0034]
[1756484874548,6.48964597,108780.0,108770.0,0.0024]
[1756484874720,6.49064597,108780.0,108770.0,0.0024]
[1756484874868,6.48984597,108780.0,108770.0,0.0024]
[1756484875075,6.5323873,108780.0,108770.0,0.0024]
[1756484875277,6.61803545,108780.0,108770.0,0.0024]
[1756484875475,6.66803545,108780.0,108770.0,0.0004]
[1756484875712,6.66903545,108780.0,108770.0,0.0004]
[1756484876028,6.61903545,108780.0,108770.0,0.0004]
[1756484876206,6.66903545,108780.0,108770.0,0.0004]
[1756484876565,6.66895113,108780.0,108770.0,0.0004]
[1756484877009,6.61895113,108780.0,108770.0,0.0004]
[1756484877189,6.66895113,108780.0,108770.0,0.0004]
[1756484877393,6.68988995,108780.0,108770.0,0.0004]
[1756484877980,0.1839242,108750.0,108730.0,0.24938846]
[1756484878185,1.1267749,108750.0,108740.0,0.00213]
[1756484878740,1.14117024,108750.0,108740.0,0.00213]
[1756484879266,0.56402913,108750.0,108740.0,0.00226102]
[1756484879475,1.14117024,108750.0,108740.0,0.00226102]
[1756484879676,1.23121074,108750.0,108740.0,0.00013102]
[1756484879885,1.41503074,108750.0,108740.0,0.00013102]
[1756484880018,1.41503074,108750.0,108740.0,0.00313102]
[1756484880225,0.74784913,108750.0,108740.0,0.00819102]
[1756484880624,0.74783297,108750.0,108740.0,0.00819102]
[1756484881240,0.56392493,108750.0,108740.0,0.19211597]
[1756484881477,0.20952959,108750.0,108740.0,0.19211597]
[1756484881838,0.39343763,108750.0,108740.0,0.00819102]
[1756484882267,0.20952959,108750.0,108740.0,0.19211597]
[1756484882454,0.20952959,108750.0,108740.0,0.76925708]
[1756484882649,0.18382,108750.0,108740.0,0.18911597]
[1756484882854,0.20951836,108750.0,108740.0,0.76625708]
[1756484883051,0.20951836,108750.0,108740.0,0.18911597]
[1756484883460,0.20952579,108750.0,108740.0,0.19011597]
[1756484883649,0.20952579,108750.0,108740.0,0.19111597]
[1756484884515,0.20952579,108750.0,108740.0,0.76825708]
[1756484884724,0.20952579,108750.0,108740.0,0.83897708]
[1756484886002,0.20952579,108750.0,108740.0,0.83797708]
[1756484886331,0.20952579,108750.0,108740.0,0.83697708]
[1756484886716,0.20952579,108750.0,108740.0,0.83797708]
[1756484886916,0.20952579,108750.0,108740.0,0.84097708]
[1756484887071,0.20952579,108750.0,108740.0,0.26283597]
[1756484887288,0.20952579,108750.0,108740.0,0.83997708]
[1756484887487,0.20952579,108750.0,108740.0,0.84097708]
[1756484888247,0.20952579,108750.0,108740.0,1.24097708]
[1756484888447,0.20952579,108750.0,108740.0,1.35021222]
[1756484889237,0.20952579,108750.0,108740.0,0.77307111]
[1756484889453,0.20952579,108750.0,108740.0,1.35021222]
[1756484889612,10.20952579,108750.0,108740.0,1.35021222]
[1756484890222,10.20952579,108750.0,108740.0,1.34721222]
[1756484890423,10.20952579,108750.0,108740.0,1.34621222]
[1756484890633,10.20952579,108750.0,108740.0,1.34921222]
[1756484891505,10.20952579,108750.0,108740.0,1.35121222]
[1756484892325,9.60845868,108750.0,108740.0,1.69121222]
[1756484892552,9.46469462,108750.0,108740.0,2.31835333]
[1756484892721,9.46469462,108750.0,108740.0,1.74121222]
[1756484893316,8.92498993,108750.0,108740.0,2.36635333]
[1756484893562,8.81821206,108750.0,108740.0,2.36335333]
[1756484893741,8.60196043,108750.0,108740.0,2.37135333]
[1756484893942,8.34710738,108750.0,108740.0,2.37135333]
[1756484894415,7.78049592,108750.0,108740.0,2.36735333]
[1756484894625,7.78049592,108750.0,108740.0,1.79021222]
[1756484894824,7.52268417,108750.0,108740.0,2.37135333]
[1756484895016,7.31440918,108750.0,108740.0,2.37135333]
[1756484895442,6.89305794,108750.0,108740.0,2.36735333]
[1756484895679,6.80178135,108750.0,108740.0,2.39999833]
[1756484895940,6.69413538,108750.0,108740.0,1.82285722]
[1756484896436,6.69413538,108750.0,108740.0,2.39999833]
[1756484896670,6.1167558,108750.0,108740.0,2.39999833]
[1756484897047,5.74038381,108750.0,108740.0,2.39999833]
[1756484897488,5.36161662,108750.0,108740.0,2.39999833]
[1756484897706,5.06308049,108750.0,108740.0,2.39999833]
[1756484897930,4.3856625,108750.0,108740.0,2.39999833]
[1756484898133,4.18837738,108750.0,108740.0,2.39999833]
[1756484898446,3.88229865,108750.0,108740.0,2.39999833]
[1756484898653,3.68516148,108750.0,108740.0,2.39999833]
[1756484898961,3.32326404,108750.0,108740.0,2.39999833]
[1756484899119,3.16407027,108750.0,108740.0,2.4422682]
[1756484899320,2.96539245,108750.0,108740.0,2.4372682]
[1756484899530,2.83408833,108750.0,108740.0,2.4332682]
[1756484899729,2.57842951,108750.0,108740.0,2.4472682]
[1756484900524,1.94830923,108750.0,108740.0,2.4472682]
[1756484900832,1.73538588,108750.0,108740.0,2.4472682]
[1756484901008,1.51351267,108750.0,108740.0,2.4472682]
[1756484901167,1.405844,108750.0,108740.0,2.4472682]
[1756484901367,1.15572652,108750.0,108740.0,2.4472682]
[1756484901568,0.96112868,108750.0,108740.0,2.4472682]
[1756484901796,0.76668585,108750.0,108740.0,2.4472682]
[1756484901985,0.67360447,108750.0,108740.0,2.4472682]
[1756484902297,0.51690257,108750.0,108740.0,2.4472682]
[1756484902960,0.08781707,108750.0,108740.0,2.4472682]
[1756484903087,0.0139592,108750.0,108740.0,2.4472682]
[1756484903291,0.0139592,108750.0,108740.0,1.87012709]
[1756484903643,0.0139592,108750.0,108740.0,1.74918827]
[1756484903936,0.0139592,108750.0,108740.0,1.82012709]
[1756484904233,0.0139592,108750.0,108740.0,1.86412709]
[1756484904398,0.0139592,108750.0,108740.0,1.86712709]
[1756484905414,0.0139592,108750.0,108740.0,1.85912709]
[1756484905798,0.0139592,108750.0,108740.0,1.86312709]
[1756484906356,0.0139592,108750.0,108740.0,1.86412709]
[1756484906548,0.0139592,108750.0,108740.0,1.86812709]
[1756484907164,0.0139592,108750.0,108740.0,1.81812709]
[1756484907585,0.0139592,108750.0,108740.0,1.86812709]
[1756484907989,0.0139592,108750.0,108740.0,2.13722709]
[1756484908189,0.0139592,108750.0,108740.0,2.23413709]
[1756484908515,0.0139592,108750.0,108740.0,2.13722709]
[1756484908917,0.0139592,108750.0,108740.0,2.08722709]
[1756484909524,0.0139592,108750.0,108740.0,2.13322709]
[1756484909722,0.0139592,108750.0,108740.0,2.12522709]
[1756484910054,0.0139592,108750.0,108740.0,2.13122709]
[1756484911002,0.00322,108800.0,108790.0,0.18384042]
[1756484911215,0.1031985,108800.0,108790.0,0.83170153]
[1756484912200,0.10324607,108800.0,108790.0,0.25456042]
[1756484912424,0.03113177,108800.0,108790.0,0.83170153]
[1756484912713,0.03313177,108800.0,108790.0,0.83170153]
[1756484913767,0.03313177,108800.0,108790.0,0.25456042]
[1756484914173,0.03313177,108800.0,108790.0,0.83170153]
[1756484914379,0.02991177,108800.0,108790.0,0.94093667]
[1756484914725,0.01271391,108800.0,108790.0,1.28292667]
[1756484914950,0.02992658,108800.0,108790.0,1.28292667]
[1756484915124,0.02992658,108800.0,108790.0,1.68292667]
[1756484915333,0.02792617,108800.0,108790.0,1.68093667]
[1756484915786,0.02792617,108800.0,108790.0,1.69532267]
[1756484916222,0.03114617,108800.0,108790.0,1.69532267]
[1756484916425,0.03114617,108800.0,108790.0,1.69632267]
[1756484917354,0.02792617,108800.0,108790.0,1.69632267]
[1756484918467,0.02793259,108800.0,108790.0,1.69632267]
[1756484918827,0.03115259,108800.0,108790.0,1.69632267]
[1756484920164,0.02254625,108800.0,108790.0,1.69632267]
[1756484920369,0.03115894,108800.0,108790.0,1.69632267]
[1756484920737,0.02793894,108800.0,108790.0,1.69632267]
[1756484922557,0.02793894,108800.0,108790.0,1.69831267]
[1756484922773,0.03115894,108800.0,108790.0,0.486106]
[1756484922988,0.03115894,108800.0,108790.0,0.086106]
[1756484923440,0.03115894,108800.0,108790.0,0.07172]
[1756484923890,0.21498246,108800.0,108790.0,0.07172]
[1756484925374,0.03115894,108800.0,108790.0,0.07172]
[1756484925530,0.03119094,108800.0,108790.0,0.07172]
[1756484925735,0.03119094,108800.0,108790.0,0.07072]
[1756484925933,0.21501446,108800.0,108790.0,0.07072]
[1756484926150,0.03119094,108800.0,108790.0,0.07072]
[1756484926487,0.04557841,108800.0,108790.0,0.07072]
[1756484927779,0.06544035,108800.0,108790.0,0.07072]
[1756484927991,0.06484035,108800.0,108790.0,0.07072]
[1756484928400,0.24866387,108800.0,108790.0,0.07072]
[1756484928692,0.06162035,108800.0,108790.0,0.07072]
[1756484928988,0.24853387,108800.0,108790.0,0.07072]
[1756484929192,0.06471035,108800.0,108790.0,0.07072]
[1756484929501,0.24853387,108800.0,108790.0,0.07072]
[1756484929660,0.06471035,108800.0,108790.0,0.07072]
[1756484929862,0.24853387,108800.0,108790.0,0.07072]
[1756484931594,0.18384769,108790.0,108770.0,0.07072]
[1756484931808,0.0051,108780.0,108770.0,0.07072]
[1756484932143,0.01926225,108780.0,108770.0,0.07072]
[1756484932313,0.02788337,108780.0,108770.0,0.64786111]
[1756484932508,0.02586386,108780.0,108770.0,0.83702534]
[1756484932925,0.02586386,108780.0,108770.0,0.83802534]
[1756484933443,0.02586386,108780.0,108770.0,0.83702534]
[1756484933618,0.02788386,108780.0,108770.0,0.83802534]
[1756484933825,0.02788386,108780.0,108770.0,0.64886111]
[1756484934034,0.02586386,108780.0,108770.0,0.83802534]
[1756484934243,0.02788386,108780.0,108770.0,0.83273534]
[1756484934489,0.02788386,108780.0,108770.0,0.65091111]
[1756484934696,0.02586386,108780.0,108770.0,0.83802534]
[1756484934856,0.02586386,108780.0,108770.0,0.83702534]
[1756484935271,0.02586386,108780.0,108770.0,0.94726048]
[1756484935609,0.02686386,108780.0,108770.0,1.47926625]
[1756484936186,0.02686242,108780.0,108770.0,1.47926625]
[1756484936412,0.02686242,108780.0,108770.0,0.92469281]
[1756484936612,0.02686272,108780.0,108770.0,0.92469281]
[1756484936818,0.02686272,108780.0,108770.0,0.37011937]
[1756484937108,0.02686272,108780.0,108770.0,0.92469281]
[1756484937997,0.02686272,108780.0,108770.0,1.47926625]
[1756484938509,0.02686272,108780.0,108770.0,2.21926625]
[1756484938732,0.02686272,108780.0,108770.0,2.21826625]
[1756484938908,0.0086211,108780.0,108770.0,2.21926625]
[1756484939104,0.01443646,108800.0,108790.0,0.18384042]
[1756484939356,0.02305755,108800.0,108790.0,0.73841386]
[1756484939664,0.04232973,108800.0,108790.0,0.74370386]
[1756484939911,0.35227948,108820.0,108790.0,0.74370386]
[1756484940098,0.53657178,108820.0,108800.0,0.55687123]
[1756484940241,0.53657178,108820.0,108800.0,0.55457344]
[1756484940949,0.00177,108810.0,108800.0,0.7383969]
[1756484941178,0.00177,108810.0,108800.0,0.55986344]
[1756484941626,0.00177,108810.0,108800.0,0.55781344]
[1756484941828,0.01467475,108820.0,108800.0,0.81440696]
[1756484942032,0.01467475,108820.0,108810.0,0.55687102]
[1756484942248,0.00177,108810.0,108800.0,0.25983352]
[1756484942422,0.00177,108810.0,108800.0,0.81440696]
[1756484942913,0.00477,108810.0,108800.0,0.81440696]
[1756484943091,0.003,108810.0,108800.0,0.81440696]
[1756484944588,0.01967485,108820.0,108800.0,0.81440696]
[1756484944790,0.01667485,108820.0,108800.0,0.25983352]
[1756484945056,0.001,108810.0,108800.0,0.25659352]
[1756484945614,0.001,108810.0,108800.0,0.25983352]
[1756484945797,0.00047645,108820.0,108800.0,0.25983352]
[1756484945798,0.00047645,108820.0,108810.0,0.18380663]
[1756484945998,0.00047645,108820.0,108810.0,0.18704663]
[1756484946249,0.00224645,108820.0,108810.0,0.74367007]
[1756484947278,0.01643912,108820.0,108800.0,0.25778313]
[1756484947494,0.01643912,108820.0,108800.0,0.81235566]
[1756484947705,0.20023025,108820.0,108800.0,0.62853344]
[1756484947920,0.01643912,108820.0,108800.0,0.81235658]
[1756484948322,0.001,108810.0,108800.0,0.81235658]
[1756484948564,0.001,108810.0,108800.0,0.81440658]
[1756484948771,0.001,108810.0,108800.0,1.21440658]
[1756484949373,0.20246186,108820.0,108800.0,1.03058344]
[1756484949552,0.00277,108810.0,108800.0,1.20911696]
[1756484949732,0.00277,108810.0,108800.0,0.80911696]
[1756484950203,0.00277,108810.0,108800.0,1.20911696]
[1756484950362,0.00277,108810.0,108800.0,1.21235696]
[1756484950771,0.00277,108810.0,108800.0,0.47072]
[1756484950981,0.00277,108810.0,108800.0,0.65454352]
[1756484951181,0.00277,108810.0,108800.0,1.21440696]
[1756484951389,0.00277,108810.0,108800.0,0.47601]
[1756484951631,0.74425017,108810.0,108800.0,0.07072]
[1756484951832,0.1838282,108800.0,108780.0,0.89763344]
[1756484952033,0.20966493,108800.0,108780.0,0.62529344]
[1756484952213,0.02583673,108800.0,108780.0,0.81238949]
[1756484952429,0.02760673,108800.0,108790.0,0.00205]
[1756484952677,0.02583673,108800.0,108790.0,0.74370386]
[1756484952903,0.02583673,108800.0,108790.0,0.55986344]
[1756484953248,0.02760673,108800.0,108790.0,0.55986344]
[1756484954248,0.02583673,108800.0,108790.0,0.55986344]
[1756484954825,0.02583673,108800.0,108790.0,0.56086344]
[1756484955032,0.02760673,108800.0,108790.0,0.56086344]
[1756484955231,0.02760673,108800.0,108790.0,0.00629]
[1756484955444,0.02583673,108800.0,108790.0,0.00629]
[1756484956017,0.02760673,108800.0,108790.0,0.00629]
[1756484956337,0.02760673,108800.0,108790.0,0.001]
[1756484956338,0.75939155,108800.0,108790.0,0.001]
[1756484956534,0.7660108,108800.0,108790.0,0.001]
[1756484956919,0.76601106,108800.0,108790.0,0.001]
[1756484957508,0.76701106,108800.0,108790.0,0.001]
[1756484957715,0.58318754,108800.0,108790.0,0.001]
[1756484957951,0.21243762,108800.0,108780.0,0.25781485]
[1756484958150,0.76701106,108800.0,108780.0,0.25781485]
[1756484958352,0.58318754,108800.0,108780.0,0.25781485]
[1756484958791,0.76701161,108800.0,108780.0,0.25781485]
[1756484959065,0.76601259,108800.0,108780.0,0.25781485]
[1756484959366,0.76701259,108800.0,108780.0,0.25781485]
[1756484960608,0.0286141,108800.0,108780.0,0.25781485]
[1756484960766,0.76901235,108800.0,108780.0,0.25781485]
[1756484960960,0.76701225,108800.0,108780.0,0.07396]
[1756484961154,0.76811225,108800.0,108780.0,0.07396]
[1756484961416,0.76701225,108800.0,108780.0,0.07396]
[1756484961820,0.76701225,108800.0,108780.0,0.25781599]
[1756484962044,0.76701225,108800.0,108780.0,0.07396]
[1756484962678,0.76701225,108800.0,108780.0,0.25781682]
[1756484962983,0.0286141,108800.0,108780.0,0.25457682]
[1756484963100,0.0306142,108800.0,108790.0,0.00324]
[1756484963303,0.58518764,108800.0,108780.0,0.25781682]
[1756484963510,0.76701129,108800.0,108780.0,0.25781682]
[1756484964544,0.0286141,108800.0,108790.0,0.00537]
[1756484964865,0.0306142,108800.0,108790.0,0.00537]
[1756484965011,0.0288442,108800.0,108790.0,0.00537]
[1756484965238,0.0306142,108800.0,108790.0,0.00324]
[1756484965470,0.0296142,108800.0,108780.0,0.80915026]
[1756484965632,0.21443882,108800.0,108780.0,0.81239026]
[1756484965855,0.76701216,108800.0,108780.0,0.07396]
[1756484966251,0.76701216,108800.0,108780.0,0.25781722]
[1756484966477,0.76601216,108800.0,108780.0,0.25781722]
[1756484966825,0.76701216,108800.0,108780.0,0.07396]
[1756484966937,0.76701216,108800.0,108780.0,0.25781645]
[1756484967141,0.58320144,108800.0,108780.0,0.25781645]
[1756484967762,0.028628,108800.0,108790.0,0.00537]
[1756484967961,0.0306281,108800.0,108790.0,0.00537]
[1756484968164,0.0288581,108800.0,108790.0,0.00537]
[1756484968392,0.0306281,108800.0,108790.0,0.00537]
[1756484968789,0.21445243,108800.0,108780.0,0.25457645]
[1756484969046,0.21245233,108800.0,108780.0,0.25781645]
[1756484969388,0.76702577,108800.0,108780.0,0.25781645]
[1756484969802,0.58220144,108800.0,108780.0,0.25781645]
[1756484970037,0.58320144,108800.0,108780.0,0.25781645]
[1756484970384,0.026858,108800.0,108790.0,0.00537]
[1756484970589,0.0306281,108800.0,108790.0,0.00537]
[1756484971337,0.0288581,108800.0,108790.0,0.00537]
[1756484971598,0.026858,108800.0,108790.0,0.18921042]
[1756484971799,0.027858,108800.0,108790.0,0.74378386]
[1756484972364,0.025858,108800.0,108790.0,0.18921042]
[1756484972546,0.026858,108800.0,108790.0,0.18921042]
[1756484972976,0.026858,108800.0,108790.0,0.00537]
[1756484973783,0.76702496,108800.0,108780.0,0.25781481]
[1756484974663,0.76812496,108800.0,108780.0,0.07396]
[1756484974902,0.76812496,108800.0,108780.0,0.07072]
[1756484974903,0.73841386,108790.0,108780.0,0.07072]
[1756484975103,0.76427186,108790.0,108780.0,0.07072]
[1756484975409,0.76604186,108790.0,108780.0,0.07072]
[1756484975583,0.76604186,108790.0,108770.0,0.00324]
[1756484975783,0.55657354,108780.0,108760.0,0.3589438]
[1756484975992,0.00177,108770.0,108760.0,0.07396]
[1756484976187,0.027628,108770.0,108760.0,0.07396]
[1756484976438,0.21150223,108770.0,108760.0,0.07072]
[1756484976627,0.76607567,108770.0,108760.0,0.07072]
[1756484976828,0.21150223,108770.0,108760.0,0.07072]
[1756484977030,0.76607567,108770.0,108760.0,0.07085102]
[1756484977384,0.77890834,108770.0,108760.0,0.07085102]
[1756484977718,0.77890834,108770.0,108760.0,0.07622102]
[1756484977719,0.03184134,108770.0,108760.0,0.07622102]
[1756484977972,0.02585961,108770.0,108760.0,0.07622102]
[1756484978324,0.02585961,108770.0,108760.0,0.07722102]
[1756484978520,0.02585961,108770.0,108760.0,0.07822102]
[1756484978970,0.02585961,108770.0,108760.0,0.07722102]
[1756484979586,0.76807738,108770.0,108760.0,0.07722102]
[1756484979736,0.21150384,108770.0,108760.0,0.07509102]
[1756484979935,0.02762961,108770.0,108760.0,0.07722102]
[1756484980538,0.04045448,108770.0,108760.0,0.07722102]
[1756484981149,0.22632881,108770.0,108760.0,0.07722102]
[1756484981359,0.22432871,108770.0,108760.0,0.07722102]
[1756484981640,0.2243214,108770.0,108760.0,0.07509102]
[1756484981853,0.04044717,108770.0,108760.0,0.07722102]
[1756484982055,0.2263215,108770.0,108760.0,0.07722102]
[1756484982259,0.77889484,108770.0,108760.0,0.07185102]
[1756484988438,0.76165444,108770.0,108760.0,0.07185102]
[1756484988637,0.77997829,108770.0,108760.0,0.07185102]
[1756484988837,0.77887829,108770.0,108760.0,0.07185102]
[1756484989040,0.77887829,108770.0,108760.0,0.00113102]
[1756484989041,0.77997829,108770.0,108760.0,0.00113102]
[1756484989273,1.11887829,108770.0,108760.0,0.00113102]
[1756484989484,0.56540485,108770.0,108760.0,0.00113102]
[1756484989690,1.11887829,108770.0,108760.0,0.00013102]
[1756484990096,1.12087829,108770.0,108760.0,0.00013102]
[1756484990888,1.12197829,108770.0,108760.0,0.00013102]
[1756484992156,1.12087829,108770.0,108760.0,0.00013102]
[1756484993752,1.12197829,108770.0,108760.0,0.00013102]
[1756484993985,0.65570117,108770.0,108760.0,0.00013102]
[1756484994203,6.23564824,108770.0,108760.0,0.00013102]
[1756484994443,6.21027461,108770.0,108760.0,0.00013102]
[1756484994653,6.23793161,108770.0,108760.0,0.00013102]
[1756484995130,5.59506185,108770.0,108760.0,0.00013102]
[1756484995346,6.14963529,108770.0,108760.0,0.00013102]
[1756484995519,6.70420873,108770.0,108760.0,0.00013102]
[1756484995722,0.18390804,108750.0,108740.0,0.07072]
[1756484995922,0.76608508,108750.0,108740.0,4.757e-05]
[1756484996228,0.76608508,108750.0,108740.0,0.00515757]
[1756484997282,1.32064658,108750.0,108740.0,0.00104757]
[1756484997610,1.66064658,108750.0,108740.0,0.00104757]
[1756484998263,1.66064658,108750.0,108740.0,0.00204757]
[1756484998864,1.66064658,108750.0,108740.0,0.00715757]
[1756484999097,1.66064658,108750.0,108740.0,0.00513757]
[1756484999273,1.66064658,108750.0,108740.0,0.00204757]
[1756484999474,1.66061379,108750.0,108740.0,0.00104757]
[1756484999841,1.66061383,108750.0,108740.0,0.00104757]
[1756485000272,1.66171383,108750.0,108740.0,0.00104757]
[1756485000649,1.66061383,108750.0,108740.0,0.00104757]
[1756485000848,0.57735995,108750.0,108740.0,0.00615757]
[1756485000999,0.02578891,108750.0,108740.0,0.00615757]
[1756485001200,0.02578891,108750.0,108740.0,0.00515757]
[1756485001404,0.02578891,108750.0,108740.0,0.19138158]
[1756485001639,0.02578891,108750.0,108740.0,0.18908252]
[1756485001822,0.01719258,108750.0,108740.0,0.74365596]
[1756485002024,0.02578699,108750.0,108740.0,0.8528911]
[1756485002210,0.02578699,108750.0,108740.0,1.2528911]
[1756485002815,0.02578699,108750.0,108740.0,0.40515757]
[1756485003287,0.20969503,108750.0,108740.0,0.40515757]
[1756485003467,0.02578699,108750.0,108740.0,0.59308252]
[1756485003829,0.02578699,108750.0,108740.0,0.19308252]
[1756485004234,0.02578699,108750.0,108740.0,0.00915757]
[1756485004516,0.02578699,108750.0,108740.0,0.19308252]
[1756485004732,0.02578699,108750.0,108740.0,0.74765596]
[1756485004945,0.02578699,108750.0,108740.0,0.83595228]
[1756485007288,0.02578699,108750.0,108740.0,0.8568911]
[1756485007889,0.02578699,108750.0,108740.0,1.2845431]
[1756485008308,0.02578699,108750.0,108740.0,1.63736042]
[1756485008512,0.02578699,108750.0,108740.0,2.19193386]
[1756485008844,0.20025076,108780.0,108760.0,0.18388304]
[1756485009006,0.22405318,108780.0,108770.0,0.00202]
[1756485009227,0.22405318,108780.0,108760.0,0.07072]
[1756485009228,0.00177,108770.0,108760.0,0.07072]
[1756485009432,0.20284786,108770.0,108760.0,0.07072]
[1756485009630,0.1838938,108760.0,108740.0,0.77060957]
[1756485009872,0.20969827,108760.0,108740.0,0.92688215]
[1756485010074,0.21146827,108760.0,108750.0,0.00202]
[1756485010216,0.02580447,108760.0,108750.0,0.00511]
[1756485010434,0.02780457,108760.0,108750.0,0.18901804]
[1756485010641,0.02580447,108760.0,108750.0,0.18901804]
[1756485010841,0.02580447,108760.0,108750.0,0.74359148]
[1756485011042,0.02580447,108760.0,108750.0,0.55968344]
[1756485011246,0.02580447,108760.0,108750.0,0.74359148]
[1756485012453,0.02580886,108760.0,108750.0,0.74359148]
[1756485013483,0.02580886,108760.0,108750.0,0.8318878]
[1756485013694,0.02580886,108760.0,108750.0,1.38646124]
[1756485013901,0.02580886,108760.0,108750.0,1.40740006]
[1756485014111,0.02580886,108760.0,108750.0,1.74740006]